[Event "Lueneburg Open-A 2019"]
[Site "Lueneburg"]
[Date "2019.08.11"]
[Round "9.11"]
[White "Buchenau, Frank"]
[Black "Kiesel, Harald"]
[Result "1-0"]
[ECO "C24"]
[WhiteElo "2294"]
[BlackElo "2023"]
[Annotator "NA"]
[PlyCount "77"]
[EventDate "2019.08.03"]
[EventType "swiss"]
[EventCountry "GER"]
[SourceTitle "playchess.com"]
[Source "ChessBase"]
[SourceQuality "1"]
[TimeControl "40/5400+30:1800+30"]

1. e4 {[%emt 0:02:16]} e5 {[%emt 0:00:00]} 2. Bc4 {[%emt 0:00:13]} Nf6 {[%emt 0:00:00]} 3. d3 {[%emt 0:00:09]} c6 {[%emt 0:00:07]} 4. Nf3 {[%emt 0:00:12]} d5 {[%emt 0:00:22]} 5. Bb3 {[%emt 0:00:07]} a5 {[%emt 0:01:05]} 6. a4 {[%emt 0:00:44]} Bb4+ {[%emt 0:00:12]} 7. c3 {[%emt 0:01:15]} Bd6 {[%emt 0:00:06]} 8. O-O {[%emt 0:02:59]} O-O {[%emt 0:00:33]} 9. Re1 {[%emt 0:01:30]} dxe4 {[%emt 0:04:44]} 10. dxe4 {[%emt 0:00:29]} Na6 {[%emt 0:01:53]} 11. Na3 {[%emt 0:09:46]} Nc5 {[%emt 0:02:25]} 12. Bc2 {[%emt 0:02:47]} Bg4 {[%emt 0:03:32]} 13. Nc4 {[%emt 0:03:02]} Bc7 {[%emt 0:01:18]} 14. Qxd8 {[%emt 0:00:41]} Raxd8 {[%emt 0:00:22]} 15. Nfxe5 {[%emt 0:01:11]} Rfe8 {[%emt 0:05:21]} 16. Nxg4 {[%emt 0:06:47]} Nxg4 {[%emt 0:00:18]} 17. h3 {[%emt 0:08:12]} Nf6 {[%emt 0:03:37]} 18. Bg5 {[%emt 0:06:04]} Rd7 {[%emt 0:02:32]} 19. e5 {[%emt 0:04:21]} Nd5 {[%emt 0:00:56]} 20. Rad1 {[%emt 0:02:08]} h6 {[%emt 0:01:58]} 21. Bc1 {[%emt 0:04:44]} Rde7 {[%emt 0:02:49]} 22. f4 {[%emt 0:02:05]} h5 {[%emt 0:09:26]} 23. Kf1 {[%emt 0:03:42]} g5 {[%emt 0:10:04]} 24. fxg5 {[%emt 0:02:27]} Bxe5 {[%emt 0:00:49]} 25. Nxe5 {[%emt 0:03:11]} Rxe5 {[%emt 0:00:06]} 26. Rxe5 {[%emt 0:00:21]} Rxe5 {[%emt 0:00:04]} 27. Re1 {[%emt 0:00:22]} Rxe1+ {[%emt 0:02:14]} 28. Kxe1 {[%emt 0:01:28]} b5 {[%emt 0:01:46]} 29. axb5 {[%emt 0:01:28]} cxb5 {[%emt 0:00:01]} 30. Ke2 {[%emt 0:02:10]} a4 {[%emt 0:04:30]} 31. Be3 {[%emt 0:01:37]} Ne6 {[%emt 0:13:22]} 32. Be4 {[%emt 0:04:50]} Nec7 {[%emt 0:06:56]} 33. Bxd5 {[%emt 0:05:08]} Nxd5 {[%emt 0:00:01]} 34. Kd3 {[%emt 0:00:45]} b4 {[%emt 0:03:23]} 35. cxb4 {[%emt 0:01:34]} Nxb4+ {[%emt 0:00:05]} 36. Kc4 {[%emt 0:01:42]} Nc2 {[%emt 0:00:39]} 37. Bf2 {[%emt 0:01:03]} Kg7 {[%emt 0:06:44]} 38. Kc3 {[%emt 0:03:19]} a3 {[%emt 0:00:46]} 39. Kxc2 {[%emt 0:00:27]} 1-0

[Event "Lueneburg Open-A 2019"]
[Site "Lueneburg"]
[Date "2019.08.11"]
[Round "9.12"]
[White "Schulz, Daniel"]
[Black "Weishaeutel, Moritz"]
[Result "0-1"]
[ECO "A58"]
[WhiteElo "2071"]
[BlackElo "2276"]
[Annotator "ChessBase"]
[PlyCount "146"]
[EventDate "2019.08.03"]
[EventType "swiss"]
[EventCountry "GER"]
[SourceTitle "playchess.com"]
[Source "ChessBase"]
[SourceQuality "1"]
[TimeControl "40/5400+30:1800+30"]

1. d4 {[%emt 0:17:25]} Nf6 {[%emt 0:00:00]} 2. c4 {[%emt 0:00:05]} c5 {[%emt 0:00:00]} 3. d5 {[%emt 0:00:07]} b5 {[%emt 0:00:00]} 4. cxb5 {[%emt 0:00:11]} a6 {[%emt 0:00:00]} 5. bxa6 {[%emt 0:00:11]} g6 {[%emt 0:00:00]} 6. Nc3 {[%emt 0:00:13]} Bg7 {[%emt 0:00:00]} 7. e4 {[%emt 0:00:11]} O-O {[%emt 0:00:00]} 8. a7 {[%emt 0:03:38]} Rxa7 {[%emt 0:00:10]} 9. Nf3 {[%emt 0:00:17]} e6 {[%emt 0:00:11]} 10. Be2 {[%emt 0:00:26]} exd5 {[%emt 0:00:06]} 11. exd5 {[%emt 0:00:24]} d6 {[%emt 0:00:06]} 12. O-O {[%emt 0:02:25]} Na6 {[%emt 0:00:06]} 13. Nd2 {[%emt 0:14:45]} Re8 {[%emt 0:14:54]} 14. Bb5 {[%emt 0:01:45]} Bd7 {[%emt 0:01:39]} 15. Nc4 {[%emt 0:13:58]} Bxb5 {[%emt 0:15:59]} 16. Nxb5 {[%emt 0:00:30]} Rd7 {[%emt 0:00:01]} 17. Bg5 {[%emt 0:18:55]} Re4 {[%emt 0:16:31]} 18. Qc2 {[%emt 0:07:36]} Rg4 {[%emt 0:00:01]} 19. Bxf6 {[%emt 0:01:24]} Qxf6 {[%emt 0:00:01]} 20. a3 {[%emt 0:02:38]} Qf4 {[%emt 0:15:00]} 21. Ne3 {[%emt 0:02:42]} Rg5 {[%emt 0:00:01]} 22. Rae1 {[%emt 0:01:32]} Rb7 {[%emt 0:03:35]} 23. Nc3 {[%emt 0:01:45]} Nc7 {[%emt 0:01:09]} 24. g3 {[%emt 0:01:54]} f5 {[%emt 0:15:01]} 25. Ng2 {[%emt 0:01:18]} Qc4 {[%emt 0:02:16]} 26. Ne3 {[%emt 0:01:42]} Qb3 {[%emt 0:03:04]} 27. Qd3 {[%emt 0:03:04]} f4 {[%emt 0:00:48]} 28. Nc4 {[%emt 0:00:35]} Rxd5 {[%emt 0:01:33]} 29. Re8+ {[%emt 0:00:58]} Nxe8 {[%emt 0:02:04]} 30. Qxd5+ {[%emt 0:00:10]} Rf7 {[%emt 0:00:37]} 31. Re1 {[%emt 0:01:24]} Nc7 {[%emt 0:00:09]} 32. Qd3 {[%emt 0:01:12]} fxg3 {[%emt 0:00:11]} 33. hxg3 {[%emt 0:00:14]} Bd4 {[%emt 0:01:11]} 34. Re2 {[%emt 0:00:39]} d5 {[%emt 0:01:57]} 35. Nd6 {[%emt 0:00:37]} Rf6 {[%emt 0:03:36]} 36. Nc8 {[%emt 0:00:11]} Qb7 {[%emt 0:03:18]} 37. Ne7+ {[%emt 0:00:52]} Kf7 {[%emt 0:00:01]} 38. Qc2 {[%emt 0:00:36]} Bxc3 {[%emt 0:02:25]} 39. Qxc3 {[%emt 0:00:25]} Re6 {[%emt 0:00:01]} 40. Rxe6 {[%emt 0:00:32]} Nxe6 {[%emt 0:00:06]} 41. Nc8 {[%emt 0:04:53]} Qxc8 {[%emt 0:00:55]} 42. Qf3+ {[%emt 0:00:09]} Ke7 {[%emt 0:01:22]} 43. Qxd5 {[%emt 0:00:12]} Qd7 {[%emt 0:00:55]} 44. Qe4 {[%emt 0:01:25]} Qd1+ {[%emt 0:02:12]} 45. Kg2 {[%emt 0:00:18]} Kd6 {[%emt 0:00:45]} 46. Qh4 {[%emt 0:01:30]} Qd5+ {[%emt 0:02:41]} 47. Kg1 {[%emt 0:01:30]} Ng5 {[%emt 0:02:05]} 48. Qf4+ {[%emt 0:00:39]} Kc6 {[%emt 0:00:07]} 49. Qa4+ {[%emt 0:00:52]} Kb6 {[%emt 0:00:27]} 50. Qe8 {[%emt 0:02:31]} Nf3+ {[%emt 0:09:41]} 51. Kf1 {[%emt 0:01:34]} Nd2+ {[%emt 0:00:07]} 52. Kg1 {[%emt 0:02:03]} Nf3+ {[%emt 0:00:05]} 53. Kf1 {[%emt 0:00:46]} Nd4 {[%emt 0:00:10]} 54. Kg1 {[%emt 0:01:03]} Qc6 {[%emt 0:01:09]} 55. Qb8+ {[%emt 0:01:25]} Qb7 {[%emt 0:00:05]} 56. Qd6+ {[%emt 0:00:29]} Kb5 {[%emt 0:00:04]} 57. Qf8 {[%emt 0:06:39]} Kc4 {[%emt 0:01:55]} 58. b4 {[%emt 0:04:24]} cxb4 {[%emt 0:01:27]} 59. axb4 {[%emt 0:00:19]} Kd3 {[%emt 0:00:52]} 60. Qc5 {[%emt 0:02:15]} Qb5 {[%emt 0:05:32]} 61. Qe7 {[%emt 0:00:33]} Qh5 {[%emt 0:02:25]} 62. Qe3+ {[%emt 0:00:44]} Kc4 {[%emt 0:00:04]} 63. Qf4 {[%emt 0:01:50]} g5 {[%emt 0:04:24]} 64. Qe4 {[%emt 0:01:35]} Qf3 {[%emt 0:00:10]} 65. Qxf3 {[%emt 0:02:50]} Nxf3+ {[%emt 0:00:05]} 66. Kf1 {[%emt 0:00:10]} Kxb4 {[%emt 0:00:52]} 67. Ke2 {[%emt 0:00:10]} g4 {[%emt 0:00:27]} 68. Ke3 {[%emt 0:01:07]} Kc3 {[%emt 0:00:03]} 69. Kf4 {[%emt 0:00:11]} h5 {[%emt 0:00:46]} 70. Ke3 {[%emt 0:00:54]} Ng5 {[%emt 0:00:06]} 71. Kf4 {[%emt 0:00:12]} Nh3+ {[%emt 0:00:06]} 72. Ke3 {[%emt 0:00:08]} Nxf2 {[%emt 0:00:10]} 73. Kxf2 {[%emt 0:00:02]} Kd2 {[%emt 0:00:04]} 0-1

[Event "Lueneburg Open-A 2019"]
[Site "Lueneburg"]
[Date "2019.08.11"]
[Round "9.13"]
[White "Jurkic, Bosiljko"]
[Black "Lubbe, Melanie"]
[Result "0-1"]
[ECO "A01"]
[WhiteElo "2046"]
[BlackElo "2258"]
[Annotator "NA"]
[PlyCount "80"]
[EventDate "2019.08.03"]
[EventType "swiss"]
[EventCountry "GER"]
[SourceTitle "playchess.com"]
[Source "ChessBase"]
[SourceQuality "1"]
[TimeControl "40/5400+30:1800+30"]

1. b3 {[%emt 0:01:19]} e5 {[%emt 0:00:00]} 2. Bb2 {[%emt 0:00:09]} d6 {[%emt 0:00:00]} 3. e3 {[%emt 0:00:48]} g6 {[%emt 0:00:00]} 4. d4 {[%emt 0:02:28]} Bg7 {[%emt 0:00:06]} 5. dxe5 {[%emt 0:01:02]} Nd7 {[%emt 0:00:35]} 6. Nf3 {[%emt 0:03:13]} dxe5 {[%emt 0:00:32]} 7. Bc4 {[%emt 0:03:06]} Nh6 {[%emt 0:02:56]} 8. e4 {[%emt 0:08:01]} O-O {[%emt 0:02:16]} 9. Nbd2 {[%emt 0:09:23]} c6 {[%emt 0:07:06]} 10. a4 {[%emt 0:01:05]} b6 {[%emt 0:07:45]} 11. O-O {[%emt 0:03:02]} Qc7 {[%emt 0:04:02]} 12. Qe2 {[%emt 0:05:23]} Re8 {[%emt 0:02:48]} 13. Rfd1 {[%emt 0:01:47]} Nc5 {[%emt 0:01:46]} 14. Ng5 {[%emt 0:03:27]} Qe7 {[%emt 0:09:05]} 15. Ndf3 {[%emt 0:02:52]} Kh8 {[%emt 0:12:23]} 16. b4 {[%emt 0:05:19]} Nb7 {[%emt 0:06:12]} 17. b5 {[%emt 0:04:34]} f6 {[%emt 0:01:10]} 18. bxc6 {[%emt 0:01:15]} Nc5 {[%emt 0:01:43]} 19. Nh3 {[%emt 0:03:40]} g5 {[%emt 0:06:10]} 20. Bxe5 {[%emt 0:10:31]} fxe5 {[%emt 0:02:29]} 21. Nhxg5 {[%emt 0:00:52]} Rf8 {[%emt 0:06:20]} 22. a5 {[%emt 0:09:25]} Rb8 {[%emt 0:01:03]} 23. axb6 {[%emt 0:01:19]} Rxb6 {[%emt 0:06:00]} 24. Bd5 {[%emt 0:01:32]} Bf6 {[%emt 0:02:25]} 25. Qe3 {[%emt 0:02:16]} Ng4 {[%emt 0:03:24]} 26. Qd2 {[%emt 0:04:02]} Nxf2 {[%emt 0:01:13]} 27. Rf1 {[%emt 0:03:10]} Ng4 {[%emt 0:00:12]} 28. h3 {[%emt 0:01:12]} Nh6 {[%emt 0:00:56]} 29. Ra5 {[%emt 0:01:14]} Na6 {[%emt 0:06:42]} 30. Ne6 {[%emt 0:02:35]} Bxe6 {[%emt 0:00:20]} 31. Bxe6 {[%emt 0:01:37]} Qxe6 {[%emt 0:02:10]} 32. Qxh6 {[%emt 0:00:03]} Qe7 {[%emt 0:01:48]} 33. Rfa1 {[%emt 0:02:59]} Bg7 {[%emt 0:00:40]} 34. Qe3 {[%emt 0:00:20]} Nc7 {[%emt 0:00:18]} 35. Qc5 {[%emt 0:01:33]} Qxc5+ {[%emt 0:00:55]} 36. Rxc5 {[%emt 0:00:02]} Ne6 {[%emt 0:00:46]} 37. Rca5 {[%emt 0:01:14]} Rxc6 {[%emt 0:00:25]} 38. Nxe5 {[%emt 0:00:01]} Rxc2 {[%emt 0:01:16]} 39. Nf3 {[%emt 0:00:56]} Bxa1 {[%emt 0:00:17]} 40. Rxa1 {[%emt 0:00:42]} Nf4 {[%emt 0:00:39]} 0-1

[Event "Lueneburg Open-A 2019"]
[Site "Lueneburg"]
[Date "2019.08.11"]
[Round "9.14"]
[White "Mueer, Sebastian"]
[Black "von Estorff, Jacob"]
[Result "1/2-1/2"]
[ECO "B35"]
[WhiteElo "2198"]
[BlackElo "2055"]
[Annotator "NA"]
[PlyCount "46"]
[EventDate "2019.08.03"]
[EventType "swiss"]
[EventCountry "GER"]
[SourceTitle "playchess.com"]
[Source "ChessBase"]
[SourceQuality "1"]
[TimeControl "40/5400+30:1800+30"]

1. e4 {[%emt 0:06:30]} c5 {[%emt 0:00:00]} 2. Nf3 {[%emt 0:00:10]} Nc6 {[%emt 0:00:00]} 3. d4 {[%emt 0:00:16]} cxd4 {[%emt 0:00:00]} 4. Nxd4 {[%emt 0:00:08]} g6 {[%emt 0:00:21]} 5. Nc3 {[%emt 0:00:12]} Bg7 {[%emt 0:00:06]} 6. Be3 {[%emt 0:00:07]} Nf6 {[%emt 0:00:24]} 7. Bc4 {[%emt 0:00:18]} O-O {[%emt 0:01:01]} 8. Bb3 {[%emt 0:00:07]} Qa5 {[%emt 0:02:27]} 9. O-O {[%emt 0:00:47]} d6 {[%emt 0:00:06]} 10. h3 {[%emt 0:00:32]} Bd7 {[%emt 0:00:10]} 11. Qd2 {[%emt 0:08:55]} Nxd4 {[%emt 0:04:51]} 12. Qxd4 {[%emt 0:03:00]} Ng4 {[%emt 0:02:14]} 13. Qd5 {[%emt 0:07:41]} Qxd5 {[%emt 0:08:51]} 14. Nxd5 {[%emt 0:01:26]} Nxe3 {[%emt 0:00:27]} 15. Nxe7+ {[%emt 0:03:48]} Kh8 {[%emt 0:00:09]} 16. fxe3 {[%emt 0:00:27]} Rae8 {[%emt 0:01:04]} 17. Nd5 {[%emt 0:01:25]} Bxb2 {[%emt 0:10:12]} 18. Rab1 {[%emt 0:01:32]} Be5 {[%emt 0:00:19]} 19. Nf6 {[%emt 0:04:06]} Rd8 {[%emt 0:05:15]} 20. Nxd7 {[%emt 0:01:15]} Rxd7 {[%emt 0:02:20]} 21. Bd5 {[%emt 0:00:36]} b6 {[%emt 0:00:03]} 22. Rb3 {[%emt 0:02:07]} Rc7 {[%emt 0:00:10]} 23. c4 {[%emt 0:00:19]} Kg7 {[%emt 0:00:48]} 1/2-1/2

[Event "Lueneburg Open-A 2019"]
[Site "Lueneburg"]
[Date "2019.08.11"]
[Round "9.16"]
[White "Blum, Frederik"]
[Black "Dijkhuis, Oele"]
[Result "0-1"]
[ECO "B72"]
[WhiteElo "2037"]
[BlackElo "2161"]
[Annotator "NA"]
[PlyCount "62"]
[EventDate "2019.08.03"]
[EventType "swiss"]
[EventCountry "GER"]
[SourceTitle "playchess.com"]
[Source "ChessBase"]
[SourceQuality "1"]
[TimeControl "40/5400+30:1800+30"]

1. e4 {[%emt 0:00:00]} c5 {[%emt 0:00:00]} 2. Nf3 {[%emt 0:00:00]} d6 {[%emt 0:00:00]} 3. d4 {[%emt 0:00:00]} cxd4 {[%emt 0:00:00]} 4. Nxd4 {[%emt 0:00:00]} Nf6 {[%emt 0:00:00]} 5. Nc3 {[%emt 0:00:02]} g6 {[%emt 0:00:00]} 6. Be3 {[%emt 0:00:13]} a6 {[%emt 0:00:02]} 7. f3 {[%emt 0:00:15]} b5 {[%emt 0:00:10]} 8. Qd2 {[%emt 0:00:32]} Bb7 {[%emt 0:00:16]} 9. Nb3 {[%emt 0:04:06]} Nbd7 {[%emt 0:02:52]} 10. a4 {[%emt 0:02:21]} b4 {[%emt 0:01:36]} 11. Nd5 {[%emt 0:01:02]} Nxd5 {[%emt 0:01:47]} 12. exd5 {[%emt 0:00:09]} Bg7 {[%emt 0:02:15]} 13. O-O-O {[%emt 0:28:48]} Rc8 {[%emt 0:12:43]} 14. Qxb4 {[%emt 0:08:35]} Qc7 {[%emt 0:01:04]} 15. c3 {[%emt 0:06:37]} Bxc3 {[%emt 0:04:38]} 16. bxc3 {[%emt 0:05:36]} Qxc3+ {[%emt 0:00:07]} 17. Qxc3 {[%emt 0:00:08]} Rxc3+ {[%emt 0:00:04]} 18. Kb2 {[%emt 0:04:47]} Rxe3 {[%emt 0:00:10]} 19. Na5 {[%emt 0:01:47]} Nc5 {[%emt 0:02:27]} 20. Kc2 {[%emt 0:15:40]} Bc8 {[%emt 0:00:08]} 21. Nc4 {[%emt 0:01:21]} Rb3 {[%emt 0:06:54]} 22. Re1 {[%emt 0:03:41]} Bf5+ {[%emt 0:07:40]} 23. Kd2 {[%emt 0:00:35]} Kd8 {[%emt 0:03:38]} 24. Na5 {[%emt 0:01:55]} Rb2+ {[%emt 0:03:58]} 25. Kc1 {[%emt 0:03:02]} Rb1+ {[%emt 0:02:08]} 26. Kd2 {[%emt 0:00:05]} Rxe1 {[%emt 0:00:56]} 27. Nc6+ {[%emt 0:02:21]} Kc7 {[%emt 0:01:46]} 28. Kxe1 {[%emt 0:00:06]} Bd7 {[%emt 0:00:04]} 29. Nb4 {[%emt 0:01:11]} Rb8 {[%emt 0:00:49]} 30. Nd3 {[%emt 0:01:03]} Rb1+ {[%emt 0:00:42]} 31. Kd2 {[%emt 0:00:33]} Nxd3 {[%emt 0:00:07]} 0-1

[Event "Lueneburg Open-A 2019"]
[Site "Lueneburg"]
[Date "2019.08.11"]
[Round "9.17"]
[White "Anderberg, Peter"]
[Black "Colbow, Collin"]
[Result "1/2-1/2"]
[ECO "E32"]
[WhiteElo "2014"]
[BlackElo "2167"]
[Annotator "ChessBase"]
[PlyCount "177"]
[EventDate "2019.08.03"]
[EventType "swiss"]
[EventCountry "GER"]
[SourceTitle "playchess.com"]
[Source "ChessBase"]
[SourceQuality "1"]
[TimeControl "40/5400+30:1800+30"]

1. d4 {[%emt 0:00:00]} Nf6 {[%emt 0:02:10]} 2. c4 {[%emt 0:00:00]} e6 {[%emt 0:00:11]} 3. Nc3 {[%emt 0:00:08]} Bb4 {[%emt 0:00:07]} 4. Qc2 {[%emt 0:00:31]} b6 {[%emt 0:00:36]} 5. a3 {[%emt 0:02:07]} Bxc3+ {[%emt 0:00:08]} 6. Qxc3 {[%emt 0:00:14]} Bb7 {[%emt 0:00:06]} 7. Bg5 {[%emt 0:04:15]} h6 {[%emt 0:02:11]} 8. Bh4 {[%emt 0:00:01]} d6 {[%emt 0:02:08]} 9. f3 {[%emt 0:04:52]} Qe7 {[%emt 0:09:08]} 10. e4 {[%emt 0:08:21]} e5 {[%emt 0:02:34]} 11. dxe5 {[%emt 0:01:56]} dxe5 {[%emt 0:04:37]} 12. c5 {[%emt 1:13:35]} Nxe4 {[%emt 0:04:55]} 13. Bxe7 {[%emt 0:00:00]} Nxc3 {[%emt 0:00:07]} 14. cxb6 {[%emt 0:00:00]} axb6 {[%emt 0:00:59]} 15. Bh4 {[%emt 0:00:00]} Nd5 {[%emt 0:01:02]} 16. Bb5+ {[%emt 0:00:00]} c6 {[%emt 0:01:34]} 17. Bd3 {[%emt 0:00:00]} Nd7 {[%emt 0:07:13]} 18. Ne2 {[%emt 0:00:00]} Nc5 {[%emt 0:03:37]} 19. Bb1 {[%emt 0:00:00]} Ba6 {[%emt 0:09:00]} 20. b4 {[%emt 0:00:00]} Nb3 {[%emt 0:03:45]} 21. Ra2 {[%emt 0:00:00]} O-O {[%emt 0:04:02]} 22. Be4 {[%emt 0:00:00]} Bxe2 {[%emt 0:03:01]} 23. Bxd5 {[%emt 0:00:00]} cxd5 {[%emt 0:00:47]} 24. Kxe2 {[%emt 0:00:00]} Rfc8 {[%emt 0:00:07]} 25. Bf2 {[%emt 0:00:00]} Nc1+ {[%emt 0:08:29]} 26. Rxc1 {[%emt 0:00:00]} Rxc1 {[%emt 0:00:02]} 27. Bxb6 {[%emt 0:00:00]} Ra4 {[%emt 0:00:38]} 28. Kd2 {[%emt 0:00:00]} Rc4 {[%emt 0:00:39]} 29. Bc5 {[%emt 0:00:00]} d4 {[%emt 0:03:05]} 30. Bd6 {[%emt 0:00:00]} Ra6 {[%emt 0:12:18]} 31. Bc5 {[%emt 0:00:00]} Ra4 {[%emt 0:03:55]} 32. Bd6 {[%emt 0:00:00]} Rc3 {[%emt 0:02:35]} 33. Bxe5 {[%emt 0:03:49]} Raxa3 {[%emt 0:00:35]} 34. Rxa3 {[%emt 0:02:22]} Rxa3 {[%emt 0:00:05]} 35. Bxd4 {[%emt 0:01:58]} f6 {[%emt 0:01:54]} 36. Bb2 {[%emt 0:01:36]} Rb3 {[%emt 0:01:18]} 37. Bc3 {[%emt 0:00:06]} Kf7 {[%emt 0:00:15]} 38. Kc2 {[%emt 0:00:54]} Ra3 {[%emt 0:00:05]} 39. Kb2 {[%emt 0:01:10]} Ra8 {[%emt 0:00:14]} 40. h4 {[%emt 0:00:48]} Ke6 {[%emt 0:01:25]} 41. g4 {[%emt 0:03:09]} g5 {[%emt 0:05:18]} 42. hxg5 {[%emt 0:01:16]} fxg5 {[%emt 0:09:06]} 43. Bg7 {[%emt 0:00:11]} Kf7 {[%emt 0:00:40]} 44. Be5 {[%emt 0:00:17]} Rf8 {[%emt 0:07:42]} 45. b5 {[%emt 0:16:25]} Ke6 {[%emt 0:06:54]} 46. Bg7 {[%emt 0:00:14]} Rxf3 {[%emt 0:02:25]} 47. Bxh6 {[%emt 0:00:05]} Kf6 {[%emt 0:00:25]} 48. Bf8 {[%emt 0:03:16]} Rd3 {[%emt 0:00:48]} 49. b6 {[%emt 0:01:04]} Rd5 {[%emt 0:07:19]} 50. Kc3 {[%emt 0:03:00]} Rb5 {[%emt 0:00:08]} 51. Kd4 {[%emt 0:00:30]} Rxb6 {[%emt 0:00:06]} 52. Ke4 {[%emt 0:00:48]} Rc6 {[%emt 0:01:22]} 53. Kf3 {[%emt 0:01:58]} Rc3+ {[%emt 0:00:07]} 54. Kf2 {[%emt 0:00:29]} Rc4 {[%emt 0:00:50]} 55. Kf3 {[%emt 0:01:02]} Rf4+ {[%emt 0:01:56]} 56. Kg3 {[%emt 0:00:05]} Rd4 {[%emt 0:00:42]} 57. Bc5 {[%emt 0:02:12]} Rd3+ {[%emt 0:00:06]} 58. Kf2 {[%emt 0:00:19]} Ke6 {[%emt 0:00:48]} 59. Be3 {[%emt 0:00:42]} Rd5 {[%emt 0:00:03]} 60. Kf3 {[%emt 0:00:23]} Re5 {[%emt 0:00:17]} 61. Bd4 {[%emt 0:00:46]} Rb5 {[%emt 0:00:14]} 62. Be3 {[%emt 0:00:25]} Kd6 {[%emt 0:00:11]} 63. Ke4 {[%emt 0:00:41]} Re5+ {[%emt 0:00:02]} 64. Kf3 {[%emt 0:00:34]} Kd5 {[%emt 0:00:27]} 65. Bc1 {[%emt 0:00:34]} Kc4 {[%emt 0:00:09]} 66. Bd2 {[%emt 0:00:35]} Kd4 {[%emt 0:01:06]} 67. Bc1 {[%emt 0:00:14]} Rb5 {[%emt 0:00:24]} 68. Be3+ {[%emt 0:00:15]} Kd3 {[%emt 0:00:58]} 69. Bc1 {[%emt 0:00:18]} Re5 {[%emt 0:00:50]} 70. Ba3 {[%emt 0:01:52]} Re3+ {[%emt 0:00:11]} 71. Kg2 {[%emt 0:00:31]} Ke2 {[%emt 0:01:24]} 72. Bc1 {[%emt 0:00:13]} Re5 {[%emt 0:00:10]} 73. Kg3 {[%emt 0:00:37]} Rb5 {[%emt 0:00:48]} 74. Kg2 {[%emt 0:00:56]} Rb4 {[%emt 0:00:39]} 75. Kg3 {[%emt 0:00:19]} Rb3+ {[%emt 0:00:14]} 76. Kg2 {[%emt 0:00:09]} Rb5 {[%emt 0:00:12]} 77. Kg3 {[%emt 0:00:19]} Kf1 {[%emt 0:00:33]} 78. Bxg5 {[%emt 0:00:42]} Rxg5 {[%emt 0:00:12]} 79. Kf4 {[%emt 0:00:02]} Rg7 {[%emt 0:01:27]} 80. g5 {[%emt 0:00:52]} Kg2 {[%emt 0:00:04]} 81. Kf5 {[%emt 0:00:06]} Kg3 {[%emt 0:00:21]} 82. Kf6 {[%emt 0:00:52]} Ra7 {[%emt 0:00:38]} 83. g6 {[%emt 0:00:06]} Kf4 {[%emt 0:00:32]} 84. g7 {[%emt 0:00:35]} Ra8 {[%emt 0:00:45]} 85. Kf7 {[%emt 0:00:11]} Kf5 {[%emt 0:00:17]} 86. g8=Q {[%emt 0:00:11]} Ra7+ {[%emt 0:00:08]} 87. Kf8 {[%emt 0:00:26]} Ra8+ {[%emt 0:00:15]} 88. Kg7 {[%emt 0:00:58]} Rxg8+ {[%emt 0:00:02]} 89. Kxg8 {[%emt 0:00:08]} 1/2-1/2

[Event "Lueneburg Open-A 2019"]
[Site "Lueneburg"]
[Date "2019.08.11"]
[Round "9.18"]
[White "Deutschbein, Christopher"]
[Black "Ramme, Christoph"]
[Result "0-1"]
[ECO "E05"]
[WhiteElo "2015"]
[BlackElo "2154"]
[Annotator "NA"]
[PlyCount "42"]
[EventDate "2019.08.03"]
[EventType "swiss"]
[EventCountry "GER"]
[SourceTitle "playchess.com"]
[Source "ChessBase"]
[SourceQuality "1"]
[TimeControl "40/5400+30:1800+30"]

1. d4 {[%emt 0:00:00]} Nf6 {[%emt 0:00:00]} 2. c4 {[%emt 0:00:00]} e6 {[%emt 0:00:00]} 3. Nf3 {[%emt 0:00:08]} d5 {[%emt 0:00:00]} 4. g3 {[%emt 0:00:15]} Be7 {[%emt 0:00:09]} 5. Bg2 {[%emt 0:00:09]} O-O {[%emt 0:00:08]} 6. O-O {[%emt 0:00:28]} dxc4 {[%emt 0:00:25]} 7. Qc2 {[%emt 0:01:37]} a6 {[%emt 0:00:20]} 8. a4 {[%emt 0:00:06]} Bd7 {[%emt 0:00:19]} 9. Rd1 {[%emt 0:00:55]} c5 {[%emt 0:11:51]} 10. dxc5 {[%emt 0:04:51]} Bxc5 {[%emt 0:04:40]} 11. Ne5 {[%emt 0:10:33]} Qb6 {[%emt 0:06:44]} 12. e3 {[%emt 0:21:09]} Bc6 {[%emt 0:02:00]} 13. Nxc4 {[%emt 0:04:06]} Qc7 {[%emt 0:02:20]} 14. Bd2 {[%emt 0:03:09]} Bxg2 {[%emt 0:03:15]} 15. Kxg2 {[%emt 0:00:10]} Nc6 {[%emt 0:01:47]} 16. Bc3 {[%emt 0:00:36]} Nd5 {[%emt 0:03:24]} 17. Nba3 {[%emt 0:04:39]} Rac8 {[%emt 0:03:15]} 18. Rac1 {[%emt 0:01:04]} Qb8 {[%emt 0:04:04]} 19. Qe4 {[%emt 0:08:44]} b5 {[%emt 0:16:21]} 20. axb5 {[%emt 0:00:27]} axb5 {[%emt 0:00:08]} 21. b4 {[%emt 0:19:11]} Nxc3 {[%emt 0:02:22]} 0-1